Cogmind - Beta 13 @@@ ROGUE MODE // 2024.04.03 @ 14:39:33 Player: CogEmotions! Result: Destroyed by L-31 Rogue with Katana Performance ------------- Evolutions (1) 500 Regions Visited (2) 400 Robots Destroyed (34) 170 Value Destroyed (760) 760 Prototype IDs (2) 40 Alien Tech Used (0) 0 Bonus (0) 0 TOTAL SCORE: 1870 Bonus ------- None Cogmind --------- Core Integrity 0/400 Matter 275/300 Energy 100/100 System Corruption 3% Temperature Cool (0) Movement Core (750) Ox14 Location -9/Materials Parts ------- > --- POWER (1) -------- (None) > --- PROPULSION (2) --- (None) > --- UTILITY (4) ------ High-capacity Storage Unit Improved Targeting Computer Utility Shielding > --- WEAPON (2) ------- Maul > --- INVENTORY (20) --- Light Ion Engine Light Ion Engine Signal Interpreter Light Assault Rifle Peak State ------------ > --- POWER ------------ Ion Engine > --- PROPULSION ------- Aluminum Leg Improved Flight Unit > --- UTILITY ---------- Heat Sink High-capacity Storage Unit Improved Targeting Computer > --- WEAPON ----------- Heavy EM Pulse Gun Heavy EM Pulse Gun > --- INVENTORY -------- Light Ion Engine Light Ion Engine Aluminum Leg Signal Interpreter Utility Shielding EM Pulse Gun Beam Cannon Beam Cannon Light Assault Rifle Maul [Rating: 14] Favorites ----------- Power Ion Engine Engine Ion Engine Power Core Light Nuclear Core Propulsion Light Treads Treads Light Treads Leg Aluminum Leg Hover Unit Hover Unit Flight Unit Improved Flight Unit Utility High-capacity Storage Unit Device Heat Sink Storage High-capacity Storage Unit Processor Improved Targeting Computer Protection Utility Shielding Weapon Assault Rifle Energy Gun Heavy EM Pulse Gun Energy Cannon Beam Cannon Ballistic Gun Assault Rifle Impact Weapon Maul Build | -11 -10 -9 ------- Run | Yrd Mat Mat Slots Evolved 2 | . . 2 Power . | . . . Propulsion . | . . . Utility 2 | . . 2 Weapon . | . . . Parts Attached 33 | 6 11 16 Power 5 | 1 1 3 Engine 4 | 1 1 2 Core 1 | . . 1 Reactor . | . . . Propulsion 9 | 2 2 5 Treads 2 | 2 . . Leg 3 | . 2 1 Wheel . | . . . Hover 3 | . . 3 Flight 1 | . . 1 Utility 6 | 1 2 3 Device 1 | . 1 . Storage 2 | 1 1 . Processor 2 | . . 2 Hackware . | . . . Protection 1 | . . 1 Artifact . | . . . Weapon 13 | 2 6 5 Energy Gun 4 | . 2 2 Energy Cannon 4 | . 2 2 Ballistic Gun 4 | 2 2 . Ballistic Cannon . | . . . Launcher . | . . . Special Weapon . | . . . Impact Weapon 1 | . . 1 Slashing Weapon . | . . . Piercing Weapon . | . . . Special Melee Weapon . | . . . Unidentified Prototypes 2 | . . 2 Parts Lost 11 | . 1 10 Power 2 | . . 2 Propulsion 3 | . 1 2 Utility 1 | . . 1 Weapon 5 | . . 5 Highest Loss Streak 7 | . 1 7 To Critical Strikes . | . . . Average Slot Usage (%) 89 | . 95 82 Engine 12 | . 14 10 Treads 13 | . 22 . Leg 9 | . 5 15 Hover 1 | . . 3 Device 9 | . 9 10 Storage 12 | . 14 11 Processor 4 | . . 11 Energy Gun 8 | . 2 16 Energy Cannon 5 | . 8 2 Ballistic Gun 10 | . 17 . Naked Turns . | . . . Heaviest Build 52 | 13 52 52 Greatest Support 40 | 40 40 20 Greatest Overweight (x) 8 | . 2 8 Average Overweight (x) 1 | . . 2 Largest Inventory Capacity 20 | 8 20 20 Average Capacity 17 | 7 15 20 Most Carried 11 | 3 10 11 Average Carried 6 | 1 6 8 Final Capacity 20 | 8 20 20 Final Carried 9 | 1 9 4 Class Distribution -------------------- 100% | Mutant Dominant Class ---------------- Mutant | -10/Materials Mutant | -9/Materials Resources | -11 -10 -9 ----------- Run | Yrd Mat Mat Matter Collected 652 | 185 342 125 Remotely . | . . . Salvage Created 936 | . 382 554 Parts 69 | . 41 28 Haulers Intercepted . | . . . Recyclers Shooed 2 | . 1 1 Parts Field Recycled . | . . . Retrieved Matter . | . . . Parts Self-Destructed . | . . . Prevented . | . . . Kills | -11 -10 -9 ------- Run | Yrd Mat Mat Combat Hostiles Destroyed 27 | . 16 11 Melee 1 | . . 1 Guns 14 | . 10 4 Cannons 9 | . 6 3 AOE 1 | . . 1 Classes Destroyed 7 | . 4 3 Worker 2 | . 1 1 Builder 1 | . . 1 Recycler 1 | . . 1 Watcher 3 | . 2 1 Swarmer 12 | . 12 . Grunt 12 | . 4 8 Sentry 3 | . . 3 Best Kill Streak 6 | . 6 4 Combat Bots Only 6 | . 6 4 Max Kills in Single Turn 2 | . 1 2 Gunslinging . | . . . Exploded 1 | . . 1 Melee 1 | . . 1 Uniques/NPCs Destroyed . | . . . Combat | -11 -10 -9 -------- Run | Yrd Mat Mat Hostile Shots Fired 199 | . 79 120 Missed 53 | . 21 32 Damage Taken 1827 | . 598 1229 Core 530 | . 105 425 Absorbed by Shields . | . . . Redirected to Shielding 11 | . . 11 Core Remaining (%) 79 | 100 58 . Volleys Fired 77 | . 43 34 Largest 2 | . 2 2 Hottest 120 | . 120 120 Shots Fired 141 | . 86 55 Gun 103 | . 70 33 Cannon 38 | . 16 22 Launcher . | . . . Special . | . . . Kinetic 70 | . 70 . Thermal 49 | . 16 33 Explosive . | . . . Electromagnetic 22 | . . 22 Robot Hit Streak 11 | . 9 11 Robot Miss Streak 5 | . 5 2 Penetration Max . | . . . Secondary Targets 1 | . 1 . Max Gunslinging Chain 1 | . 1 . Shots Hit Robots 103 | . 51 52 Core Hits 40 | . 24 16 Critical Kills . | . . . Critical Parts Destroyed 2 | . . 2 Critical Strikes 3 | . . 3 Smash 3 | . . 3 Melee Attacks 15 | . . 15 Impact 15 | . . 15 Slashing . | . . . Piercing . | . . . Sneak Attacks . | . . . Combat Hostiles . | . . . Follow-up Attacks . | . . . Damage Inflicted 1862 | . 730 1132 Guns 874 | . 516 358 Cannons 475 | . 191 284 Explosions 53 | . . 53 Melee 437 | . . 437 Ramming 23 | . 23 . Kinetic 516 | . 516 . Thermal 659 | . 191 468 Explosive . | . . . Electromagnetic 227 | . . 227 Impact 437 | . . 437 Slashing . | . . . Piercing . | . . . Highest Corruption 3 | . . 3 Average Corruption 3 | . . 3 Corruption Purged . | . . . Corruption Blocked . | . . . Effects 7 | . . 7 Message Errors 1 | . . 1 Heat Flow Errors 1 | . . 1 Energy Discharges 1 | . . 1 Parts Rejected 1 | . . 1 Data Loss (minor) 1 | . . 1 Misfires 1 | . . 1 Weapon Failures 1 | . . 1 Overload Shots . | . . . Overflow Damage 90 | . 11 79 Projectiles 11 | . 11 . Explosions . | . . . Melee 79 | . . 79 Knockbacks 2 | . . 2 Impact 2 | . . 2 Kinetic . | . . . Secondary . | . . . Self-Inflicted Damage . | . . . Shots . | . . . Rammed 4 | . 4 . Targets Rammed 4 | . 4 . Kicked . | . . . Crushed . | . . . Highest Temperature 255 | . 120 255 Average Temperature 70 | . 42 82 Received Heat Transfer 714 | . 165 549 Siege Activations . | . . . Robots Corrupted . | . . . Combat Hostiles . | . . . Parts Fried 3 | . . 3 Impact Corruptions 5 | . . 5 Robots Melted . | . . . Combat Hostiles . | . . . Parts Melted . | . . . Heat Transferred 1382 | . 407 975 Parts Sabotaged . | . . . Parts Stolen . | . . . Parts Stripped . | . . . Power Chain Reactions 1 | . . 1 Alert | -11 -10 -9 ------- Run | Yrd Mat Mat Peak Influence 256 | . 256 185 Initial 74 | . . 74 Average 121 | . 152 88 Maximum Alert Level 1 | . 1 . Low Security (%) 91 | 100 85 100 Level 1 8 | . 14 . Level 2 . | . . . Level 3 . | . . . Level 4 . | . . . Level 5 . | . . . High Security . | . . . Max Security . | . . . Squads Dispatched 2 | . 1 1 Investigation . | . . . Extermination . | . . . Reinforcement 2 | . 1 1 Assault . | . . . Garrison . | . . . Intercept . | . . . Searches Triggered . | . . . Construction Impeded . | . . . Haulers Reinforced . | . . . Active Scanning Responses . | . . . Cargo Convoy Interrupts . | . . . Stealth | -11 -10 -9 --------- Run | Yrd Mat Mat Distress Signals 4 | . 2 2 Communications Jammed . | . . . Distress Signals . | . . . Times Spotted 46 | . 27 19 Peak Tracking Total 8 | . 5 8 Tactical Retreats 1 | . 1 . Traps | -11 -10 -9 ------- Run | Yrd Mat Mat Traps Triggered . | . . . Indirectly . | . . . Trap Hack Attempts . | . . . Triggered . | . . . Disarmed . | . . . Reprogrammed . | . . . Reused . | . . . Traps Extracted . | . . . Installed . | . . . Triggered . | . . . Machines | -11 -10 -9 ---------- Run | Yrd Mat Mat Machines Disabled 1 | . 1 . Max in Single Turn 1 | . 1 . Machines Repaired . | . . . Machines Dismantled . | . . . Machines Sabotaged . | . . . Overloaded Fab Kills . | . . . Hacking | -11 -10 -9 --------- Run | Yrd Mat Mat Machines Accessed 2 | . 2 . Terminals 2 | . 2 . Fabricators . | . . . Repair Stations . | . . . Recycling Units . | . . . Scanalyzers . | . . . Garrison Access . | . . . Total Hacks 5 | . 5 . Successful 2 | . 2 . Failed 3 | . 3 . Catastrophic . | . . . Database Lockouts . | . . . Manual . | . . . Terminals 5 | . 5 . Fabricators . | . . . Repair Stations . | . . . Recycling Units . | . . . Scanalyzers . | . . . Garrison Access . | . . . Terminal Hacks 2 | . 2 . Record 2 | . 2 . Fabricator Hacks . | . . . Repair Station Hacks . | . . . Recycling Unit Hacks . | . . . Scanalyzer . | . . . Garrison Access Hacks . | . . . Unauthorized Hacks . | . . . Terminals . | . . . Fabricators . | . . . Repair Stations . | . . . Recycling Units . | . . . Scanalyzers . | . . . Garrison Access . | . . . Data Cores Recovered . | . . . Used . | . . . Hacking Detections 2 | . 2 . Full Trace Events 1 | . 1 . Feedback Events . | . . . Feedback Blocked . | . . . Robot Schematics Acquired . | . . . Robots Built . | . . . Authchips . | . . . Time . | . . . Total Robot Build Rating . | . . . Part Schematics Acquired . | . . . Parts Built . | . . . Authchips . | . . . Time . | . . . Total Part Build Rating . | . . . Parts Repaired . | . . . Time . | . . . Parts Recycled . | . . . Recycled Matter . | . . . Retrieved Matter . | . . . Retrieved Components . | . . . Parts Scanalyzed . | . . . Part Schematics Acquired . | . . . Parts Damaged . | . . . Bothacking | -11 -10 -9 ------------ Run | Yrd Mat Mat Used RIF Installer . | . . . Robots Hacked . | . . . Non-combat . | . . . Combat . | . . . Robot Hacks Applied . | . . . Relay Couplers Released . | . . . Fabnet Peak Effective % . | . . . Robots Rewired . | . . . Allies Hacked . | . . . Hacks Repelled . | . . . Allies | -11 -10 -9 -------- Run | Yrd Mat Mat Total Allies . | . . . Largest Group . | . . . Highest-Rated Group . | . . . Highest-Rated Ally . | . . . Total Orders . | . . . Ally Attacks . | . . . Total Damage . | . . . Kills . | . . . Allies Corrupted . | . . . Allies Melted . | . . . Intel | -11 -10 -9 ------- Run | Yrd Mat Mat Robot Analysis Total . | . . . Derelict Logs Recovered . | . . . Drone Launches . | . . . Drone Recoveries . | . . . Exploration | -11 -10 -9 ------------- Run | Yrd Mat Mat Turns Passed 1778 | 71 1023 684 Spaces Moved 630 | 46 394 190 Core 13 | 13 . . Treads 357 | 33 324 . Legs 231 | . 70 161 Wheels . | . . . Hover 29 | . . 29 Flight . | . . . Fastest Speed 50 | 50 160 236 Average Speed 220 | 128 210 262 Slowest Speed 540 | 160 320 540 Overloaded Moves . | . . . Propulsion Burnouts . | . . . Robots Hopped . | . . . Cave-ins Triggered . | . . . Exploration Rate (%) 27 | 4 59 20 Regions Visited 2 Branch Regions . Pre-discovered Areas . | . . . Known Exits Taken . | . . . Unknown Exits Taken 2 | 1 1 . Scrap Searched . | . . . Spaces Dug . | . . . Terrain Destroyed 5 | . . 5 Melee . | . . . Projectile . | . . . AOE 5 | . . 5 Terrain Rammed . | . . . Walls Destroyed . | . . . Machines Disabled . | . . . Actions | -11 -10 -9 --------- Run | Yrd Mat Mat Total 847 | 58 499 290 Wait 47 | . 26 21 Move 628 | 45 393 190 Hop . | . . . Pick Up 32 | 7 16 9 Fast Attach . | . . . Attach 18 | 6 2 10 Detach . | . . . Swap 15 | . 9 6 Drop 11 | . 6 5 Fire 77 | . 43 34 Melee 15 | . . 15 Ram . | . . . Kick . | . . . Crush 4 | . 4 . Escape Stasis . | . . . Rewire . | . . . Trap . | . . . Miscellaneous . | . . . Route ------- -11/Scrapyard -10/Materials (discovered 2 exits: *Mat x2) -9/Materials History --------- Turn | Location | Event 2 | -11/Scrapyard | Met Revision 17 11 | -11/Scrapyard | Discovered new exit (range 16) 72 | -11/Scrapyard | Entered Materials 302 | -10/Materials | Build established: Mutant 448 | -10/Materials | Discovered new exit (range 15) 800 | -10/Materials | Derelicts attacked the area 914 | -10/Materials | Discovered new exit (range 16) 1095 | -10/Materials | Entered another Materials area 1095 | -9/Materials | Evolved 2 slots: Utility x2 1747 | -9/Materials | Core integrity fell below 50% 1761 | -9/Materials | Core integrity fell below 20% 1779 | -9/Materials | Destroyed by L-31 Rogue with Katana Last Messages --------------- Y-45 Defender suffers critical hit (Smash). Destroyed Heat Sink. Y-45 Defender system corrupted by crushing effect. Y-45 Defender system terminally corrupted. Imp. Ion Engine fried. M-13 Machinist repairs Katana. M-13 Machinist repairs Sml. Laser. G-34 Mercenary suffers critical hit (Smash). Destroyed Aluminum Leg. Destroyed Heat Sink. G-34 Mercenary system corrupted by crushing effect. G-34 Mercenary system terminally corrupted. Ion Engine fried. M-13 Machinist repairs Aluminum Leg. Destroyed Heat Sink. G-34 Mercenary system corrupted by crushing effect. G-34 Mercenary destroyed. Map ----- +----------------------------------------------------+ | ?????????????????????????????????????????? | | ?????????????????????????????????????????? | | ?????????????????????????????????????????? | | ?????????????????????????????????????????? | | ?????????????????????????????????????????? | | ?????????????????????????????????????????? | | ?????????????????????????????????????????? | | ?????????????????????????????????????????? | | ?????????????????????????????????????????? | | ????????????????????? ?????????????????? | | ???????????????????? ?????????????????? | | ???????????????????? ?????????????????? | | ????????????????????# #????????????????? | | ????????????????????# #????????????????? | | ????????????????????# #????????????????? | | ????????????????????# #????????????????? | | ???????????????????## ##???????????????? | | ???????????????????# #???????????????? | | ???????????????????# #???????????????? | | ???????????????????# %[ +???????????????? | | ???????????????????# = #???????????????? | | ???????????????????# ????????????????? | | ????????????????????# #????????????????? | | ?????## ############# ######+###???????? | | ????? % % l%% #???????? | | ????? %! #@""" #???????? | | ????? == #%""" #???????? | | ?????????####/#### ####m"""g #???????? | | ?????????????????# =#??# #???????? | | ?????????????????#!!=#??# """ ????????? | | ?????????????????#*!=#??# """ ?????????? | | ?????????????????# %=#??# """ ????????? | | ?????????????????#! =#??# ??? ????????? | | ?????????????????#%! #??####?????????????? | | ?????????????????#* %#???????????????????? | | ?????????????????# #???????????????????? | | ?????????????????# !#???????????????????? | | ?????????????????#=%%#???????????????????? | | ?????????????????# [[#???????????????????? | | ?????????????????# #???????????????????? | | ?????????????????# #???????????????????? | | ????????????????## ##???????########???? | | ????????????????# ######### #???? | | ????????????????# [ * # #???? | | ????????????????# [ = # !! #???? | | ????????????????# ! + ! #???? | | ????????????????# #### # #???? | | ????????????????#######??# # #???? | | ?????????????????????????# ########???? | | ?????????????????????????# #??????????? | +----------------------------------------------------+ Best States ------------- Heat Dissipation 38 Energy Generation 14 Energy Capacity 250 Matter Stores 300 Matter Capacity 300 Sight Range 16 Terrain Scan Density 10 Utility Shielding 33 Evasion (%) 50 Targeting Accuracy 6 Recoil Reduction 2 Item Schematics ----------------- None Robot Schematics ------------------ None Fabricated ------------ Nothing Alien Tech Used ----------------- None Achievements -------------- None Challenges ------------ None Game ------ Seed GuidedVortexJammer Manual? 0 Play Time 00:19:31 Cumulative 6.4 hours Start 2024.04.03 @ 13:42:39 End 2024.04.03 @ 14:39:33 Sessions 1 Manual Loads 0 Difficulty Rogue Special Mode None Game No. 16 Rogue 16 Adventurer 0 Explorer 0 Win Type - Total 0 Types 0/0/0/0/0/0/0/0/0 Lore% 3 Gallery% 12 Achievement% 10 Wizard Run 0 Options --------- Layout 1 ASCII 0 Keyboard 0 Movement Mouse Keybinds 0 Fullscreen 1 Font 24/Smallcaps Map View 50x35 Zoom Use 0% Tactical HUD 0 Map Filters NONE Filters NONE Steam 1 RUN: 36140d18-422e-4ed5-a4c5-6b49a39c5ef6